Cogmind - Beta 9.2 @@@ ROGUE MODE // 2019.11.20 @ 02:53:09 Player: Cassie Rose Result: Self-destructed Performance ------------- Evolutions (1) 500 Regions Visited (3) 600 Robots Destroyed (24) 120 Value Destroyed (383) 383 Prototype IDs (3) 60 Alien Tech Used (0) 0 Bonus (102) 102 TOTAL SCORE: 1765 Bonus ------- Follower Combat Kills 102 Cogmind --------- Core Integrity 201/400 Matter 295/300 Energy 280/280 System Corruption 0% Temperature Cool (0) Movement Core (450) Ox8 Location -9/Materials Parts ------- > --- POWER (1) -------- Cooled Ion Engine > --- PROPULSION (2) --- (None) > --- UTILITY (4) ------ Large Storage Unit Sensor Array Signal Interpreter > --- WEAPON (2) ------- (None) > --- INVENTORY (10) --- Cooled Ion Engine Cooled Ion Engine Improved Terrain Scanner Peak State ------------ > --- POWER ------------ Improved Ion Engine > --- PROPULSION ------- Aluminum Leg Aluminum Leg > --- UTILITY ---------- Medium Storage Unit Light Armor Plating > --- WEAPON ----------- EM Pulse Gun Assault Rifle > --- INVENTORY -------- Improved Ion Engine Light Treads Light Treads Improved Terrain Scanner EM Shotgun EM Shotgun Grenade Launcher [Rating: 9] Favorites ----------- Power Improved Ion Engine Engine Improved Ion Engine Propulsion Light Treads Treads Light Treads Leg Aluminum Leg Utility Large Storage Unit Device Improved Terrain Scanner Storage Large Storage Unit Processor Signal Interpreter Protection Light Armor Plating Weapon EM Shotgun Energy Gun EM Shotgun Ballistic Gun Assault Rifle Launcher EMP Blaster Build | -11 -10 -10 -9 ------- Run | Scr Mat Min Mat Slots Evolved 2 | . . . 2 Power . | . . . . Propulsion . | . . . . Utility 2 | . . . 2 Weapon . | . . . . Parts Attached 26 | 7 8 5 6 Power 6 | 1 1 1 3 Engine 6 | 1 1 1 3 Core . | . . . . Reactor . | . . . . Propulsion 6 | 2 3 1 . Treads 3 | . 2 1 . Leg 3 | 2 1 . . Wheel . | . . . . Hover . | . . . . Flight . | . . . . Utility 7 | 2 3 . 2 Device 2 | 1 . . 1 Storage 3 | 1 2 . . Processor 1 | . . . 1 Hackware . | . . . . Protection 1 | . 1 . . Artifact . | . . . . Weapon 7 | 2 1 3 1 Energy Gun 4 | 1 1 1 1 Energy Cannon . | . . . . Ballistic Gun 1 | 1 . . . Ballistic Cannon . | . . . . Launcher 2 | . . 2 . Special Weapon . | . . . . Impact Weapon . | . . . . Slashing Weapon . | . . . . Piercing Weapon . | . . . . Special Melee Weapon . | . . . . Unidentified Prototypes 1 | . . . 1 Parts Lost 11 | . 3 3 5 Power 1 | . . . 1 Propulsion 3 | . . 2 1 Utility 1 | . 1 . . Weapon 6 | . 2 1 3 Highest Loss Streak 3 | . 2 2 3 Average Slot Usage (%) 78 | . 95 73 52 Engine 13 | . 14 14 11 Treads 12 | . 9 18 10 Leg 8 | . 18 . . Storage 13 | . 14 14 11 Protection 3 | . 8 . . Energy Gun 12 | . 13 14 8 Ballistic Gun 6 | . 14 . . Launcher 5 | . . 12 7 Naked Turns . | . . . . Heaviest Build 30 | 12 30 30 30 Greatest Support 40 | 20 40 40 20 Greatest Overweight (x) 8 | 3 1 1 8 Average Overweight (x) . | . . . 1 Largest Inventory Capacity 10 | 6 10 10 10 Average Capacity 8 | 5 8 10 10 Most Carried 8 | 6 8 6 6 Average Carried 4 | 4 6 2 3 Final Capacity 10 | 6 10 10 10 Final Carried 7 | 6 7 2 3 Class Distribution -------------------- 100% | Mutant Dominant Class ---------------- Mutant | -10/Materials Mutant | -10/Mines Mutant | -9/Materials Resources | -11 -10 -10 -9 ----------- Run | Scr Mat Min Mat Matter Collected 612 | 312 160 101 39 Remotely . | . . . . Salvage Created 673 | 238 271 51 113 Parts 53 | 21 18 . 14 Haulers Intercepted 1 | . 1 . . Recyclers Shooed 1 | . . 1 . Parts Field Recycled . | . . . . Retrieved Matter . | . . . . Parts Self-Destructed . | . . . . Prevented . | . . . . Kills | -11 -10 -10 -9 ------- Run | Scr Mat Min Mat Combat Hostiles Destroyed 12 | . 5 5 2 Guns 7 | . 4 1 2 AOE 5 | . 1 4 . Classes Destroyed 9 | 3 4 2 . Worker 2 | 2 . . . Tunneler 5 | 5 . . . Hauler 1 | . 1 . . Recycler 1 | 1 . . . Watcher 3 | . 1 . 2 Swarmer 1 | . 1 . . Grunt 6 | . 4 . 2 Demolisher 1 | . . 1 . Assembled 4 | . . 4 . Best Kill Streak 4 | 4 2 3 3 Combat Bots Only 3 | . 2 3 2 Max Kills in Single Turn 1 | 1 1 1 1 Gunslinging . | . . . . Exploded 1 | . 1 1 . Melee . | . . . . Uniques/NPCs Destroyed . | . . . . Combat | -11 -10 -10 -9 -------- Run | Scr Mat Min Mat Damage Taken 1713 | . 687 492 534 Core 437 | . 130 108 199 Absorbed by Shields . | . . . . Core Remaining (%) 52 | 100 . 4 . Volleys Fired 68 | 15 31 12 10 Largest 2 | 2 2 2 2 Hottest 78 | 60 65 78 78 Shots Fired 115 | 30 56 18 11 Gun 102 | 30 56 6 10 Cannon . | . . . . Launcher 13 | . . 12 1 Special . | . . . . Kinetic 46 | 15 31 . . Thermal 6 | . . . 6 Explosive 3 | . . 3 . Electromagnetic 60 | 15 25 15 5 Robot Hit Streak 17 | 7 17 4 5 Robot Miss Streak 4 | 3 4 4 2 Penetration Max . | . . . . Secondary Targets . | . . . . Shots Hit Robots 80 | 20 39 12 9 Core Hits 39 | 8 10 15 6 Critical Hits . | . . . . Critical Kills . | . . . . Critical Parts Destroyed . | . . . . Melee Attacks . | . . . . Impact . | . . . . Slashing . | . . . . Piercing . | . . . . Sneak Attacks . | . . . . Combat Hostiles . | . . . . Follow-up Attacks . | . . . . Damage Inflicted 1397 | 333 583 353 128 Guns 866 | 253 472 45 96 Cannons . | . . . . Explosions 528 | 77 111 308 32 Melee . | . . . . Ramming 3 | 3 . . . Kinetic 298 | 89 209 . . Thermal 267 | 77 111 37 42 Explosive 100 | . . 100 . Electromagnetic 729 | 164 263 216 86 Impact . | . . . . Slashing . | . . . . Piercing . | . . . . Highest Corruption . | . . . . Average Corruption . | . . . . Corruption Purged . | . . . . Overload Shots . | . . . . Overflow Damage 40 | . 6 34 . Projectiles . | . . . . Explosions 40 | . 6 34 . Melee . | . . . . Knockbacks . | . . . . Impact . | . . . . Kinetic . | . . . . Secondary . | . . . . Self-Inflicted Damage 185 | . 66 119 . Shots 9 | . 2 7 . Rammed . | . . . . Targets Rammed 1 | 1 . . . Kicked 1 | 1 . . . Crushed . | . . . . Highest Temperature 135 | . 135 95 12 Average Temperature 43 | . 50 38 6 Received Heat Transfer 460 | . 306 40 114 Siege Activations . | . . . . Robots Corrupted . | . . . . Combat Hostiles . | . . . . Parts Fried . | . . . . Impact Corruptions . | . . . . Robots Melted . | . . . . Combat Hostiles . | . . . . Parts Melted . | . . . . Heat Transferred 450 | 100 150 100 100 Parts Sabotaged . | . . . . Parts Stolen . | . . . . Parts Stripped . | . . . . Power Chain Reactions 6 | 1 2 2 1 Missiles Intercepted . | . . . . Alert | -11 -10 -10 -9 ------- Run | Scr Mat Min Mat Peak Influence 134 | 40 111 57 134 Average Influence 50 | 15 69 37 64 Maximum Alert Level . | . . . . Low Security (%) 100 | 100 100 100 100 Level 1 . | . . . . Level 2 . | . . . . Level 3 . | . . . . Level 4 . | . . . . Level 5 . | . . . . High Security . | . . . . Max Security . | . . . . Squads Dispatched 2 | . 1 . 1 Investigation 2 | . 1 . 1 Extermination . | . . . . Reinforcement . | . . . . Assault . | . . . . Garrison . | . . . . Intercept . | . . . . Construction Impeded . | . . . . Haulers Reinforced . | . . . . Stealth | -11 -10 -10 -9 --------- Run | Scr Mat Min Mat Distress Signals 2 | . 1 . 1 Communications Jammed . | . . . . Distress Signals . | . . . . Times Spotted 34 | . 10 13 11 Peak Tracking Total 8 | . 3 8 5 Tactical Retreats 4 | . 2 1 1 Traps | -11 -10 -10 -9 ------- Run | Scr Mat Min Mat Traps Triggered 2 | . 1 . 1 Indirectly . | . . . . Trap Hack Attempts . | . . . . Triggered . | . . . . Disarmed . | . . . . Reprogrammed . | . . . . Reused . | . . . . Traps Extracted . | . . . . Installed . | . . . . Triggered . | . . . . Machines | -11 -10 -10 -9 ---------- Run | Scr Mat Min Mat Machines Disabled 1 | . 1 . . Max in Single Turn 1 | . 1 . . Machines Sabotaged . | . . . . Garrisons Compromised . | . . . . Overloaded Fab Kills . | . . . . Fab Network Shutdowns . | . . . . Hacking | -11 -10 -10 -9 --------- Run | Scr Mat Min Mat Machines Accessed 7 | . 5 . 2 Terminals 7 | . 5 . 2 Fabricators . | . . . . Repair Stations . | . . . . Recycling Units . | . . . . Scanalyzers . | . . . . Garrison Access . | . . . . Total Hacks 29 | . 24 . 5 Successful 17 | . 15 . 2 Failed 12 | . 9 . 3 Catastrophic . | . . . . Database Lockouts . | . . . . Manual 27 | . 22 . 5 Terminals 29 | . 24 . 5 Fabricators . | . . . . Repair Stations . | . . . . Recycling Units . | . . . . Scanalyzers . | . . . . Garrison Access . | . . . . Terminal Hacks 8 | . 8 . . Prototype ID Bank 1 | . 1 . . Branch Access Points 1 | . 1 . . Terminal Index 1 | . 1 . . Registered Components 1 | . 1 . . Zone Layout 4 | . 4 . . Fabricator Hacks . | . . . . Repair Station Hacks . | . . . . Recycling Unit Hacks . | . . . . Scanalyzer . | . . . . Garrison Access Hacks . | . . . . Unauthorized Hacks 21 | . 15 . 6 Terminals 9 | . 7 . 2 Track 2 | . 2 . . Botnet 7 | . 5 . 2 Fabricators . | . . . . Repair Stations . | . . . . Recycling Units . | . . . . Scanalyzers . | . . . . Garrison Access . | . . . . Data Cores Recovered . | . . . . Used . | . . . . Hacking Detections 6 | . 4 . 2 Full Trace Events 1 | . . . 1 Feedback Events . | . . . . Feedback Blocked . | . . . . Robot Schematics Acquired . | . . . . Robots Built . | . . . . Matter . | . . . . Time . | . . . . Total Robot Build Rating . | . . . . Part Schematics Acquired . | . . . . Parts Built . | . . . . Matter . | . . . . Time . | . . . . Total Part Build Rating . | . . . . Parts Repaired . | . . . . Time . | . . . . Parts Recycled . | . . . . Recycled Matter . | . . . . Retrieved Matter . | . . . . Retrieved Components . | . . . . Parts Scanalyzed . | . . . . Part Schematics Acquired . | . . . . Parts Damaged . | . . . . Bothacking | -11 -10 -10 -9 ------------ Run | Scr Mat Min Mat Used RIF Installer . | . . . . Robots Hacked . | . . . . Non-combat . | . . . . Combat . | . . . . Robot Hacks Applied . | . . . . Relay Couplers Released . | . . . . Robots Rewired . | . . . . Allies Hacked . | . . . . Hacks Repelled . | . . . . Allies | -11 -10 -10 -9 -------- Run | Scr Mat Min Mat Total Allies 3 | . . 3 . Largest Group 3 | . . 3 3 Highest-Rated Group 40 | . . 40 40 Highest-Rated Ally 16 | . . 16 16 Total Orders . | . . . . Ally Attacks 17 | . . . 17 Total Damage 181 | . . . 181 Kills 5 | . . . 5 Allies Corrupted . | . . . . Allies Melted . | . . . . Intel | -11 -10 -10 -9 ------- Run | Scr Mat Min Mat Robot Analysis Total . | . . . . Derelict Logs Recovered 3 | . . 3 . Drone Launches . | . . . . Drone Recoveries . | . . . . Exploration | -11 -10 -10 -9 ------------- Run | Scr Mat Min Mat Turns Passed 1475 | 213 554 454 254 Spaces Moved 771 | 121 301 239 110 Core 24 | 21 . . 3 Treads 424 | . 78 239 107 Legs 323 | 100 223 . . Wheels . | . . . . Hover . | . . . . Flight . | . . . . Fastest Speed 50 | 50 120 160 180 Average Speed 152 | 118 136 173 187 Slowest Speed 450 | 200 160 180 450 Overloaded Moves . | . . . . Propulsion Burnouts . | . . . . Robots Hopped . | . . . . Cave-ins Triggered . | . . . . Exploration Rate (%) 29 | 6 51 45 16 Regions Visited 3 Branch Regions 1 Pre-discovered Areas . | . . . . Known Exits Taken 1 | . 1 . . Unknown Exits Taken 2 | 1 . 1 . Scrap Searched 2 | . . 2 . Spaces Dug . | . . . . Terrain Destroyed 44 | 5 6 29 4 Melee . | . . . . Projectile . | . . . . AOE 44 | 5 6 29 4 Actions | -11 -10 -10 -9 --------- Run | Scr Mat Min Mat Total 956 | 160 390 260 146 Wait 52 | 5 31 3 13 Move 768 | 120 300 238 110 Hop . | . . . . Pick Up 28 | 12 10 . 6 Fast Attach 1 | 1 . . . Attach 16 | 6 1 4 5 Detach . | . . . . Swap 9 | . 7 1 1 Drop 13 | . 10 2 1 Fire 68 | 15 31 12 10 Melee . | . . . . Ram . | . . . . Kick 1 | 1 . . . Crush . | . . . . Escape Stasis . | . . . . Rewire . | . . . . Trap . | . . . . Miscellaneous . | . . . . Route ------- -11/Scrapyard -10/Materials (discovered 3 exits: *Mat / *Min x2) -10/Mines -9/Materials (discovered 2 exits: Mat / [*Min]) History --------- Turn | Location | Event 14 | -11/Scrapyard | Discovered new exit (range 15) 214 | -11/Scrapyard | Entered Materials 309 | -10/Materials | Build established: Mutant 350 | -10/Materials | Identified exit to Mines 442 | -10/Materials | Discovered new exit (range 16) 611 | -10/Materials | Core integrity fell below 50% 768 | -10/Materials | Entered Mines 816 | -10/Mines | Assembled infested the area 821 | -10/Mines | Assisted by a Guerilla fighting off Assembled 852 | -10/Mines | Core integrity fell below 20% 892 | -10/Mines | Learned 4 Materials zone layouts 963 | -10/Mines | Discovered new exit (range 5) 979 | -10/Mines | Assisted by bots powering up and referring to "LRC-V3" 983 | -10/Mines | Learned location of 1 exit from Materials 1083 | -10/Mines | Learned 2 Materials zone layouts 1222 | -10/Mines | Entered Materials 1222 | -9/Materials | Accompanied by 3 allies 1222 | -9/Materials | Evolved 2 slots: Utility x2 1223 | -9/Materials | Identified exit to Materials 1450 | -9/Materials | Discovered new exit (range 16) 1476 | -9/Materials | Self-destructed Last Messages --------------- 01433_ K-01 Serf collects debris. 01437_ U-05 Engineer builds a Wall. 01437_ K-01 Serf collects debris. 01438_ Sml. Laser destroyed. 01442_ K-01 Serf collects debris. 01450_ EXIT=FOUND 01452_ Triggered Explosive Trap. 01452_ An explosion rips through the floor. 01452_ Purification Channel disabled. 01458_ U-05 Engineer lays Concrete. 01459_ C-30 ARC bursts open, deploying its payload. 01459_ S-10 Pest unfolds itself. 01459_ Imp. Ion Engine destroyed. 01460_ U-05 Engineer lays Concrete. 01462_ The unstable cave ceiling collapses. 01462_ Lgt. Treads destroyed. 01462_ U-05 Engineer builds a Wall. 01466_ U-05 Engineer lays Concrete. 01469_ U-05 Engineer builds a Wall. 01473_ U-05 Engineer lays Concrete. Map ----- +----------------------------------------------------+ | # # #"Y """ """ # | | # # #"" """ """ # | | ###### # """ """ ###/###### | | # *# # # # | | # *# =!###########+### "" # | | # ==# #??# # T" # | | # =%# *#### # "" # | | # %!+ **! + # | | # "" # ! ! # """ # | | # "T " = ! # """ # | | # "" / * # """ # | | # #### ^ !% # # | | ######### s ########## | | # # Y % % #????????? | | # # ss" #????????? | | # # ^ "" ???????? | | # # ^ "" = ??????? | | # # """ ?????? | | # #u "" ! ?????? | | # """ ######## ?????? | | # "" #??????? ??????? | | # # """ +??????? ???????? | | # # " #???????????????? | | # ?# s #???????????????? | | ######### #???????????????? | | ??????# @ +???????????????? | | ??????# #???????????????? | | ??????### ######???????????????? | | ????????# #????????????????????? | | ???????? ????????????????????? | | ???????? ???????????????????? | | ???????? #??????????????????? | | ???????? < #??????????????????? | | ???????? #??????????????????? | | ????????" ""#??????????????????? | | ???????#"!!!"##??????????????????? | | ???????##"""#????????????????????? | | ?????????####????????????????????? | | ?????????????????????????????????? | | ?????????????????????????????????? | | | | | | | | | | | | | | | | | | | | | +----------------------------------------------------+ Best States ------------- Heat Dissipation 28 Energy Generation 14 Energy Capacity 280 Matter Stores 300 Matter Capacity 300 Sight Range 16 Robot Scan Range 10 Terrain Scan Range 16 Terrain Scan Density 10 Armor Coverage 150 Evasion (%) 40 Recoil Reduction 2 Item Schematics ----------------- None Robot Schematics ------------------ None Fabricated ------------ Nothing Alien Tech Used ----------------- None Achievements -------------- None Challenges ------------ None Game ------ Seed RecoilTerrainCutter Manual? 0 Play Time 00:24:03 Cumulative 27.1 hours Start 2019.11.20 @ 02:27:46 End 2019.11.20 @ 02:53:09 Sessions 1 Manual Loads 0 Difficulty Rogue Special Mode None Game No. 36 Rogue 36 Adventurer 0 Explorer 0 Win Type - Total 0 Types 0/0/0/0/0/0/0 Lore% 21 Gallery% 18 Achievement% 19 Wizard Run 0 Options --------- ASCII 0 Keyboard 0 Movement Arrows Keybinds 0 Fullscreen 1 Font 18/X11 Map View 76x50 Tactical HUD 1 Map Filters NONE Filters LOW_CONTRAST(13,24,33) Steam 1 RUN: 932dd893-f0ac-4339-8644-c36e113dc150